{"text_format":"3","workbook":"xlsx","n_sheets":6,"sheets":["Řídicí panel","Prodej","Příjmy","Výdaje","Daně","Kategorie"],"not_rendered":{"images":1,"defined_names":34},"read":"whole","date_system":"1900"}

{"sheet":"Řídicí panel","index":0,"n_rows":19,"n_cols":8,"rows_kept":19,"merged":[[0,2,0,4],[0,6,3,7],[4,1,4,7]]}
[null,"Výkaz zisků a ztrát","Pro [měsíc nebo rok] končící [den. měsíc. rok]"]
[null,"Název společnosti","Údaje v tisících"]
[null,"Aktuální hrubá marže [L/J]",{"$f":"IFERROR(IF(Celkem_hrubý_zisk=0,\"-\",Celkem_hrubý_zisk/Celkem_výnosy_z_prodeje),\"-\")","v":"-"}]
[null,"Aktuální návratnost prodeje [T/J]",{"$f":"IFERROR(IF(Čistý_zisk=0,\"-\",Čistý_zisk/Celkem_výnosy_z_prodeje),\"-\")","v":"-"}]
[null,"Neměňte kategorie na tomto listu, aby nedošlo k poškození vzorců. Pokud chcete přidat kategorie a aktualizovat odpovídající listy s položkami, použijte list Kategorie. Tento list se zaktualizuje automaticky."]
[null,"Souhrn","Celkem předchozí období","Celkem rozpočet","Celkem aktuální období","Celkem aktuální období jako procenta z prodeje","Celkem změna oproti předchozímu období v procentech","Celkem změna oproti rozpočtu v procentech"]
[null,"Celkové výnosy z prodeje [J]",{"$f":"SUMIFS(VýnosyZProdeje[Předchozí období],VýnosyZProdeje[Typ výnosu],\"Výnosy z prodeje\")","v":0},{"$f":"SUMIFS(VýnosyZProdeje[Rozpočet],VýnosyZProdeje[Typ výnosu],\"Výnosy z prodeje\")","v":0},{"$f":"SUMIFS(VýnosyZProdeje[Aktuální období],VýnosyZProdeje[Typ výnosu],\"Výnosy z prodeje\")","v":0},{"$f":"SUMIFS(VýnosyZProdeje[Aktuální období jako procenta z prodeje],VýnosyZProdeje[Typ výnosu],\"Výnosy z prodeje\")","v":{"v":0,"d":"0.00%"}},{"$f":"SUMIFS(VýnosyZProdeje[Změna oproti předchozímu období v procentech],VýnosyZProdeje[Typ výnosu],\"Výnosy z prodeje\")","v":{"v":0,"d":"0.00%"}},{"$f":"SUMIFS(VýnosyZProdeje[Změna oproti rozpočtu v procentech],VýnosyZProdeje[Typ výnosu],\"Výnosy z prodeje\")","v":{"v":0,"d":"0.00%"}}]
[null,"Celkové náklady na prodej [K]",{"$f":"SUMIFS(VýnosyZProdeje[Předchozí období],VýnosyZProdeje[Typ výnosu],\"Náklady na prodej\")","v":0},{"$f":"SUMIFS(VýnosyZProdeje[Rozpočet],VýnosyZProdeje[Typ výnosu],\"Náklady na prodej\")","v":0},{"$f":"SUMIFS(VýnosyZProdeje[Aktuální období],VýnosyZProdeje[Typ výnosu],\"Náklady na prodej\")","v":0},{"$f":"SUMIFS(VýnosyZProdeje[Aktuální období jako procenta z prodeje],VýnosyZProdeje[Typ výnosu],\"Náklady na prodej\")","v":{"v":0,"d":"0.00%"}},{"$f":"SUMIFS(VýnosyZProdeje[Změna oproti předchozímu období v procentech],VýnosyZProdeje[Typ výnosu],\"Náklady na prodej\")","v":{"v":0,"d":"0.00%"}},{"$f":"SUMIFS(VýnosyZProdeje[Změna oproti rozpočtu v procentech],VýnosyZProdeje[Typ výnosu],\"Náklady na prodej\")","v":{"v":0,"d":"0.00%"}}]
[null,"Celkové výdaje na prodej a marketing [M]",{"$f":"SUMIFS(ProvozníVýdaje[Předchozí období],ProvozníVýdaje[Typ výdajů],\"Prodej a marketing\")","v":0},{"$f":"SUMIFS(ProvozníVýdaje[Rozpočet],ProvozníVýdaje[Typ výdajů],\"Prodej a marketing\")","v":0},{"$f":"SUMIFS(ProvozníVýdaje[Aktuální období],ProvozníVýdaje[Typ výdajů],\"Prodej a marketing\")","v":0},{"$f":"SUMIFS(ProvozníVýdaje[Aktuální období jako procenta z prodeje],ProvozníVýdaje[Typ výdajů],\"Prodej a marketing\")","v":{"v":0,"d":"0.00%"}},{"$f":"SUMIFS(ProvozníVýdaje[Změna oproti předchozímu období v procentech],ProvozníVýdaje[Typ výdajů],\"Prodej a marketing\")","v":{"v":0,"d":"0.00%"}},{"$f":"SUMIFS(ProvozníVýdaje[Změna oproti rozpočtu v procentech],ProvozníVýdaje[Typ výdajů],\"Prodej a marketing\")","v":{"v":0,"d":"0.00%"}}]
[null,"Celkové výdaje na výzkum a vývoj [N]",{"$f":"SUMIFS(ProvozníVýdaje[Předchozí období],ProvozníVýdaje[Typ výdajů],\"Výzkum a vývoj\")","v":0},{"$f":"SUMIFS(ProvozníVýdaje[Rozpočet],ProvozníVýdaje[Typ výdajů],\"Výzkum a vývoj\")","v":0},{"$f":"SUMIFS(ProvozníVýdaje[Aktuální období],ProvozníVýdaje[Typ výdajů],\"Výzkum a vývoj\")","v":0},{"$f":"SUMIFS(ProvozníVýdaje[Aktuální období jako procenta z prodeje],ProvozníVýdaje[Typ výdajů],\"Výzkum a vývoj\")","v":{"v":0,"d":"0.00%"}},{"$f":"SUMIFS(ProvozníVýdaje[Změna oproti předchozímu období v procentech],ProvozníVýdaje[Typ výdajů],\"Výzkum a vývoj\")","v":{"v":0,"d":"0.00%"}},{"$f":"SUMIFS(ProvozníVýdaje[Změna oproti rozpočtu v procentech],ProvozníVýdaje[Typ výdajů],\"Výzkum a vývoj\")","v":{"v":0,"d":"0.00%"}}]
[null,"Celkové obecné a administrativní výdaje [O]",{"$f":"SUMIFS(ProvozníVýdaje[Předchozí období],ProvozníVýdaje[Typ výdajů],\"Obecné a administrativní\")","v":0},{"$f":"SUMIFS(ProvozníVýdaje[Rozpočet],ProvozníVýdaje[Typ výdajů],\"Obecné a administrativní\")","v":0},{"$f":"SUMIFS(ProvozníVýdaje[Aktuální období],ProvozníVýdaje[Typ výdajů],\"Obecné a administrativní\")","v":0},{"$f":"SUMIFS(ProvozníVýdaje[Aktuální období jako procenta z prodeje],ProvozníVýdaje[Typ výdajů],\"Obecné a administrativní\")","v":{"v":0,"d":"0.00%"}},{"$f":"SUMIFS(ProvozníVýdaje[Změna oproti předchozímu období v procentech],ProvozníVýdaje[Typ výdajů],\"Obecné a administrativní\")","v":{"v":0,"d":"0.00%"}},{"$f":"SUMIFS(ProvozníVýdaje[Změna oproti rozpočtu v procentech],ProvozníVýdaje[Typ výdajů],\"Obecné a administrativní\")","v":{"v":0,"d":"0.00%"}}]
[null,"Celkové jiné provozní výdaje [P]",{"$f":"ProvozníVýdaje[[#Totals],[Předchozí období]]-SUM(C9:C11)","v":0},{"$f":"ProvozníVýdaje[[#Totals],[Rozpočet]]-SUM(D9:D11)","v":0},{"$f":"ProvozníVýdaje[[#Totals],[Aktuální období]]-SUM(E9:E11)","v":0},{"$f":"ProvozníVýdaje[[#Totals],[Aktuální období jako procenta z prodeje]]-SUM(F9:F11)","v":{"v":0,"d":"0.00%"}},{"$f":"ProvozníVýdaje[[#Totals],[Změna oproti předchozímu období v procentech]]-SUM(G9:G11)","v":{"v":0,"d":"0.00%"}},{"$f":"ProvozníVýdaje[[#Totals],[Změna oproti rozpočtu v procentech]]-SUM(H9:H11)","v":{"v":0,"d":"0.00%"}}]
[null,"Jiné příjmy [S]",{"$f":"Příjmy[[#Totals],[Předchozí období]]","v":0},{"$f":"Příjmy[[#Totals],[Rozpočet]]","v":0},{"$f":"Příjmy[[#Totals],[Aktuální období]]","v":0},{"$f":"Příjmy[[#Totals],[Aktuální období jako procenta z prodeje]]","v":{"v":0,"d":"0.00%"}},{"$f":"Příjmy[[#Totals],[Změna oproti předchozímu období v procentech]]","v":{"v":0,"d":"0.00%"}},{"$f":"Příjmy[[#Totals],[Změna oproti rozpočtu v procentech]]","v":{"v":0,"d":"0.00%"}}]
[null,"Celkové daně [T]",{"$f":"Daně[[#Totals],[Předchozí období]]","v":0},{"$f":"Daně[[#Totals],[Rozpočet]]","v":0},{"$f":"Daně[[#Totals],[Aktuální období]]","v":0},{"$f":"Daně[[#Totals],[Aktuální období jako procenta z prodeje]]","v":{"v":0,"d":"0.00%"}},{"$f":"Daně[[#Totals],[Změna oproti předchozímu období v procentech]]","v":{"v":0,"d":"0.00%"}},{"$f":"Daně[[#Totals],[Změna oproti rozpočtu v procentech]]","v":{"v":0,"d":"0.00%"}}]
[]
[null,"Hrubý zisk [L=J-K]",{"$f":"IFERROR(C7-C8,\"-\")","v":0},{"$f":"IFERROR(D7-D8,\"-\")","v":0},{"$f":"IFERROR(Celkem_výnosy_z_prodeje-Celkem_náklady_na_prodej,\"-\")","v":0},{"$f":"IFERROR(IF(Celkem_výnosy_z_prodeje=0,\"0,00%\",Celkem_hrubý_zisk/Celkem_výnosy_z_prodeje),\"-\")","v":"0,00%"},{"$f":"IFERROR(IF(C16=Celkem_hrubý_zisk,0,IF(Celkem_hrubý_zisk>C16,ABS((Celkem_hrubý_zisk/C16)-1),IF(AND(Celkem_hrubý_zisk<C16,C16<0),-((Celkem_hrubý_zisk/C16)-1),(Celkem_hrubý_zisk/C16)-1))),\"-\")","v":{"v":0,"d":"0.00%"}},{"$f":"IFERROR(IF(D16=Celkem_hrubý_zisk,0,IF(Celkem_hrubý_zisk>D16,ABS((Celkem_hrubý_zisk/D16)-1),IF(AND(Celkem_hrubý_zisk<D16,D16<0),-((Celkem_hrubý_zisk/D16)-1),(Celkem_hrubý_zisk/D16)-1))),\"-\")","v":{"v":0,"d":"0.00%"}}]
[null,"Celkové provozní výdaje [Q=M+N+O+P]",{"$f":"IFERROR(C9+C10+C11+C12,\"-\")","v":0},{"$f":"IFERROR(D9+D10+D11+D12,\"-\")","v":0},{"$f":"IFERROR(Celkem_prodej_a_marketing+Celkem_výzkum_a_vývoj+Celkem_obecné_a_administrativní+Celkem_jiné_výdaje,\"-\")","v":0},{"$f":"IFERROR(IF(Celkem_výnosy_z_prodeje=0,\"0,00%\",Celkem_provozní_výdaje/Celkem_výnosy_z_prodeje),\"-\")","v":"0,00%"},{"$f":"IFERROR(IF(C17=Celkem_provozní_výdaje,0,IF(Celkem_provozní_výdaje>C17,ABS((Celkem_provozní_výdaje/C17)-1),IF(AND(Celkem_provozní_výdaje<C17,C17<0),-((Celkem_provozní_výdaje/C17)-1),(Celkem_provozní_výdaje/C17)-1))),\"-\")","v":{"v":0,"d":"0.00%"}},{"$f":"IFERROR(IF(D17=Celkem_provozní_výdaje,0,IF(Celkem_provozní_výdaje>D17,ABS((Celkem_provozní_výdaje/D17)-1),IF(AND(Celkem_provozní_výdaje<D17,D17<0),-((Celkem_provozní_výdaje/D17)-1),(Celkem_provozní_výdaje/D17)-1))),\"-\")","v":{"v":0,"d":"0.00%"}}]
[null,"Příjmy z provozu [R=L-Q]",{"$f":"IFERROR(C16-C17,\"-\")","v":0},{"$f":"IFERROR(D16-D17,\"-\")","v":0},{"$f":"IFERROR(Celkem_hrubý_zisk-Celkem_provozní_výdaje,\"-\")","v":0},{"$f":"IFERROR(IF(Celkem_výnosy_z_prodeje=0,\"0,00%\",Celkem_příjmy_z_provozu/Celkem_výnosy_z_prodeje),\"-\")","v":"0,00%"},{"$f":"IFERROR(IF(C18=Celkem_příjmy_z_provozu,0,IF(Celkem_příjmy_z_provozu>C18,ABS((Celkem_příjmy_z_provozu/C18)-1),IF(AND(Celkem_příjmy_z_provozu<C18,C18<0),-((Celkem_příjmy_z_provozu/C18)-1),(Celkem_příjmy_z_provozu/C18)-1))),\"-\")","v":{"v":0,"d":"0.00%"}},{"$f":"IFERROR(IF(D18=Celkem_příjmy_z_provozu,0,IF(Celkem_příjmy_z_provozu>D18,ABS((Celkem_příjmy_z_provozu/D18)-1),IF(AND(Celkem_příjmy_z_provozu<D18,D18<0),-((Celkem_příjmy_z_provozu/D18)-1),(Celkem_příjmy_z_provozu/D18)-1))),\"-\")","v":{"v":0,"d":"0.00%"}}]
[null,"Čistý zisk [U=R+S-T]",{"$f":"IFERROR(C18+C13-C14,\"-\")","v":0},{"$f":"IFERROR(D18+D13-D14,\"-\")","v":0},{"$f":"Celkem_příjmy_z_provozu+Celkem_jiné_příjmy-Celkem_daně","v":0},{"$f":"IFERROR(IF(Celkem_výnosy_z_prodeje=0,\"0,00%\",Čistý_zisk/Celkem_výnosy_z_prodeje),\"-\")","v":"0,00%"},{"$f":"IFERROR(IF(C19=Čistý_zisk,0,IF(Čistý_zisk>C19,ABS((Čistý_zisk/C19)-1),IF(AND(Čistý_zisk<C19,C19<0),-((Čistý_zisk/C19)-1),(Čistý_zisk/C19)-1))),\"-\")","v":{"v":0,"d":"0.00%"}},{"$f":"IFERROR(IF(D19=Čistý_zisk,0,IF(Čistý_zisk>D19,ABS((Čistý_zisk/D19)-1),IF(AND(Čistý_zisk<D19,D19<0),-((Čistý_zisk/D19)-1),(Čistý_zisk/D19)-1))),\"-\")","v":{"v":0,"d":"0.00%"}}]

{"sheet":"Prodej","index":1,"n_rows":13,"n_cols":9,"rows_kept":13,"merged":[[0,7,2,8]]}
[null,{"$f":"Název_sešitu","v":"Výkaz zisků a ztrát"}]
[null,{"$f":"Název_společnosti","v":"Název společnosti"},"Údaje v tisících"]
[null,"Výnosy z prodeje",{"$f":"IFERROR(Výnosy_z_prodeje,\"-\")","v":0}]
[null,"Typ výnosu","Popis","Předchozí období","Rozpočet","Aktuální období","Aktuální období jako procenta z prodeje","Změna oproti předchozímu období v procentech","Změna oproti rozpočtu v procentech"]
[null,"Výnosy z prodeje","Produkt nebo služba 1",{"$nulls":3},{"$f":"IFERROR(IF(VýnosyZProdeje[[#Totals],[Aktuální období]]=0,\"-\",VýnosyZProdeje[Aktuální období]/Výnosy_z_prodeje),\"-\")","v":"-"},{"$f":"IFERROR(IF(VýnosyZProdeje[Předchozí období]=VýnosyZProdeje[Aktuální období],0,IF(VýnosyZProdeje[Aktuální období]>VýnosyZProdeje[Předchozí období],ABS((VýnosyZProdeje[Aktuální období]/VýnosyZProdeje[Předchozí období])-1),IF(AND(VýnosyZProdeje[Aktuální období]<VýnosyZProdeje[Předchozí období],VýnosyZProdeje[Předchozí období]<0),-((VýnosyZProdeje[Aktuální období]/VýnosyZProdeje[Předchozí období])-1),(VýnosyZProdeje[Aktuální období]/VýnosyZProdeje[Předchozí období])-1))),\"-\")","v":{"v":0,"d":"0.00%"}},{"$f":"IFERROR(IF(VýnosyZProdeje[Rozpočet]=VýnosyZProdeje[Aktuální období],0,IF(VýnosyZProdeje[Aktuální období]>VýnosyZProdeje[Rozpočet],ABS((VýnosyZProdeje[Aktuální období]/VýnosyZProdeje[Rozpočet])-1),IF(AND(VýnosyZProdeje[Aktuální období]<VýnosyZProdeje[Rozpočet],VýnosyZProdeje[Rozpočet]<0),-((VýnosyZProdeje[Aktuální období]/VýnosyZProdeje[Rozpočet])-1),(VýnosyZProdeje[Aktuální období]/VýnosyZProdeje[Rozpočet])-1))),\"-\")","v":{"v":0,"d":"0.00%"}}]
[null,"Výnosy z prodeje","Produkt nebo služba 2",{"$nulls":3},{"$f":"IFERROR(IF(VýnosyZProdeje[[#Totals],[Aktuální období]]=0,\"-\",VýnosyZProdeje[Aktuální období]/Výnosy_z_prodeje),\"-\")","v":"-"},{"$f":"IFERROR(IF(VýnosyZProdeje[Předchozí období]=VýnosyZProdeje[Aktuální období],0,IF(VýnosyZProdeje[Aktuální období]>VýnosyZProdeje[Předchozí období],ABS((VýnosyZProdeje[Aktuální období]/VýnosyZProdeje[Předchozí období])-1),IF(AND(VýnosyZProdeje[Aktuální období]<VýnosyZProdeje[Předchozí období],VýnosyZProdeje[Předchozí období]<0),-((VýnosyZProdeje[Aktuální období]/VýnosyZProdeje[Předchozí období])-1),(VýnosyZProdeje[Aktuální období]/VýnosyZProdeje[Předchozí období])-1))),\"-\")","v":{"v":0,"d":"0.00%"}},{"$f":"IFERROR(IF(VýnosyZProdeje[Rozpočet]=VýnosyZProdeje[Aktuální období],0,IF(VýnosyZProdeje[Aktuální období]>VýnosyZProdeje[Rozpočet],ABS((VýnosyZProdeje[Aktuální období]/VýnosyZProdeje[Rozpočet])-1),IF(AND(VýnosyZProdeje[Aktuální období]<VýnosyZProdeje[Rozpočet],VýnosyZProdeje[Rozpočet]<0),-((VýnosyZProdeje[Aktuální období]/VýnosyZProdeje[Rozpočet])-1),(VýnosyZProdeje[Aktuální období]/VýnosyZProdeje[Rozpočet])-1))),\"-\")","v":{"v":0,"d":"0.00%"}}]
[null,"Výnosy z prodeje","Produkt nebo služba 3",{"$nulls":3},{"$f":"IFERROR(IF(VýnosyZProdeje[[#Totals],[Aktuální období]]=0,\"-\",VýnosyZProdeje[Aktuální období]/Výnosy_z_prodeje),\"-\")","v":"-"},{"$f":"IFERROR(IF(VýnosyZProdeje[Předchozí období]=VýnosyZProdeje[Aktuální období],0,IF(VýnosyZProdeje[Aktuální období]>VýnosyZProdeje[Předchozí období],ABS((VýnosyZProdeje[Aktuální období]/VýnosyZProdeje[Předchozí období])-1),IF(AND(VýnosyZProdeje[Aktuální období]<VýnosyZProdeje[Předchozí období],VýnosyZProdeje[Předchozí období]<0),-((VýnosyZProdeje[Aktuální období]/VýnosyZProdeje[Předchozí období])-1),(VýnosyZProdeje[Aktuální období]/VýnosyZProdeje[Předchozí období])-1))),\"-\")","v":{"v":0,"d":"0.00%"}},{"$f":"IFERROR(IF(VýnosyZProdeje[Rozpočet]=VýnosyZProdeje[Aktuální období],0,IF(VýnosyZProdeje[Aktuální období]>VýnosyZProdeje[Rozpočet],ABS((VýnosyZProdeje[Aktuální období]/VýnosyZProdeje[Rozpočet])-1),IF(AND(VýnosyZProdeje[Aktuální období]<VýnosyZProdeje[Rozpočet],VýnosyZProdeje[Rozpočet]<0),-((VýnosyZProdeje[Aktuální období]/VýnosyZProdeje[Rozpočet])-1),(VýnosyZProdeje[Aktuální období]/VýnosyZProdeje[Rozpočet])-1))),\"-\")","v":{"v":0,"d":"0.00%"}}]
[null,"Výnosy z prodeje","Produkt nebo služba 4",{"$nulls":3},{"$f":"IFERROR(IF(VýnosyZProdeje[[#Totals],[Aktuální období]]=0,\"-\",VýnosyZProdeje[Aktuální období]/Výnosy_z_prodeje),\"-\")","v":"-"},{"$f":"IFERROR(IF(VýnosyZProdeje[Předchozí období]=VýnosyZProdeje[Aktuální období],0,IF(VýnosyZProdeje[Aktuální období]>VýnosyZProdeje[Předchozí období],ABS((VýnosyZProdeje[Aktuální období]/VýnosyZProdeje[Předchozí období])-1),IF(AND(VýnosyZProdeje[Aktuální období]<VýnosyZProdeje[Předchozí období],VýnosyZProdeje[Předchozí období]<0),-((VýnosyZProdeje[Aktuální období]/VýnosyZProdeje[Předchozí období])-1),(VýnosyZProdeje[Aktuální období]/VýnosyZProdeje[Předchozí období])-1))),\"-\")","v":{"v":0,"d":"0.00%"}},{"$f":"IFERROR(IF(VýnosyZProdeje[Rozpočet]=VýnosyZProdeje[Aktuální období],0,IF(VýnosyZProdeje[Aktuální období]>VýnosyZProdeje[Rozpočet],ABS((VýnosyZProdeje[Aktuální období]/VýnosyZProdeje[Rozpočet])-1),IF(AND(VýnosyZProdeje[Aktuální období]<VýnosyZProdeje[Rozpočet],VýnosyZProdeje[Rozpočet]<0),-((VýnosyZProdeje[Aktuální období]/VýnosyZProdeje[Rozpočet])-1),(VýnosyZProdeje[Aktuální období]/VýnosyZProdeje[Rozpočet])-1))),\"-\")","v":{"v":0,"d":"0.00%"}}]
[null,"Náklady na prodej","Produkt nebo služba 1",{"$nulls":3},{"$f":"IFERROR(IF(VýnosyZProdeje[[#Totals],[Aktuální období]]=0,\"-\",VýnosyZProdeje[Aktuální období]/Výnosy_z_prodeje),\"-\")","v":"-"},{"$f":"IFERROR(IF(VýnosyZProdeje[Předchozí období]=VýnosyZProdeje[Aktuální období],0,IF(VýnosyZProdeje[Aktuální období]>VýnosyZProdeje[Předchozí období],ABS((VýnosyZProdeje[Aktuální období]/VýnosyZProdeje[Předchozí období])-1),IF(AND(VýnosyZProdeje[Aktuální období]<VýnosyZProdeje[Předchozí období],VýnosyZProdeje[Předchozí období]<0),-((VýnosyZProdeje[Aktuální období]/VýnosyZProdeje[Předchozí období])-1),(VýnosyZProdeje[Aktuální období]/VýnosyZProdeje[Předchozí období])-1))),\"-\")","v":{"v":0,"d":"0.00%"}},{"$f":"IFERROR(IF(VýnosyZProdeje[Rozpočet]=VýnosyZProdeje[Aktuální období],0,IF(VýnosyZProdeje[Aktuální období]>VýnosyZProdeje[Rozpočet],ABS((VýnosyZProdeje[Aktuální období]/VýnosyZProdeje[Rozpočet])-1),IF(AND(VýnosyZProdeje[Aktuální období]<VýnosyZProdeje[Rozpočet],VýnosyZProdeje[Rozpočet]<0),-((VýnosyZProdeje[Aktuální období]/VýnosyZProdeje[Rozpočet])-1),(VýnosyZProdeje[Aktuální období]/VýnosyZProdeje[Rozpočet])-1))),\"-\")","v":{"v":0,"d":"0.00%"}}]
[null,"Náklady na prodej","Produkt nebo služba 2",{"$nulls":3},{"$f":"IFERROR(IF(VýnosyZProdeje[[#Totals],[Aktuální období]]=0,\"-\",VýnosyZProdeje[Aktuální období]/Výnosy_z_prodeje),\"-\")","v":"-"},{"$f":"IFERROR(IF(VýnosyZProdeje[Předchozí období]=VýnosyZProdeje[Aktuální období],0,IF(VýnosyZProdeje[Aktuální období]>VýnosyZProdeje[Předchozí období],ABS((VýnosyZProdeje[Aktuální období]/VýnosyZProdeje[Předchozí období])-1),IF(AND(VýnosyZProdeje[Aktuální období]<VýnosyZProdeje[Předchozí období],VýnosyZProdeje[Předchozí období]<0),-((VýnosyZProdeje[Aktuální období]/VýnosyZProdeje[Předchozí období])-1),(VýnosyZProdeje[Aktuální období]/VýnosyZProdeje[Předchozí období])-1))),\"-\")","v":{"v":0,"d":"0.00%"}},{"$f":"IFERROR(IF(VýnosyZProdeje[Rozpočet]=VýnosyZProdeje[Aktuální období],0,IF(VýnosyZProdeje[Aktuální období]>VýnosyZProdeje[Rozpočet],ABS((VýnosyZProdeje[Aktuální období]/VýnosyZProdeje[Rozpočet])-1),IF(AND(VýnosyZProdeje[Aktuální období]<VýnosyZProdeje[Rozpočet],VýnosyZProdeje[Rozpočet]<0),-((VýnosyZProdeje[Aktuální období]/VýnosyZProdeje[Rozpočet])-1),(VýnosyZProdeje[Aktuální období]/VýnosyZProdeje[Rozpočet])-1))),\"-\")","v":{"v":0,"d":"0.00%"}}]
[null,"Náklady na prodej","Produkt nebo služba 3",{"$nulls":3},{"$f":"IFERROR(IF(VýnosyZProdeje[[#Totals],[Aktuální období]]=0,\"-\",VýnosyZProdeje[Aktuální období]/Výnosy_z_prodeje),\"-\")","v":"-"},{"$f":"IFERROR(IF(VýnosyZProdeje[Předchozí období]=VýnosyZProdeje[Aktuální období],0,IF(VýnosyZProdeje[Aktuální období]>VýnosyZProdeje[Předchozí období],ABS((VýnosyZProdeje[Aktuální období]/VýnosyZProdeje[Předchozí období])-1),IF(AND(VýnosyZProdeje[Aktuální období]<VýnosyZProdeje[Předchozí období],VýnosyZProdeje[Předchozí období]<0),-((VýnosyZProdeje[Aktuální období]/VýnosyZProdeje[Předchozí období])-1),(VýnosyZProdeje[Aktuální období]/VýnosyZProdeje[Předchozí období])-1))),\"-\")","v":{"v":0,"d":"0.00%"}},{"$f":"IFERROR(IF(VýnosyZProdeje[Rozpočet]=VýnosyZProdeje[Aktuální období],0,IF(VýnosyZProdeje[Aktuální období]>VýnosyZProdeje[Rozpočet],ABS((VýnosyZProdeje[Aktuální období]/VýnosyZProdeje[Rozpočet])-1),IF(AND(VýnosyZProdeje[Aktuální období]<VýnosyZProdeje[Rozpočet],VýnosyZProdeje[Rozpočet]<0),-((VýnosyZProdeje[Aktuální období]/VýnosyZProdeje[Rozpočet])-1),(VýnosyZProdeje[Aktuální období]/VýnosyZProdeje[Rozpočet])-1))),\"-\")","v":{"v":0,"d":"0.00%"}}]
[null,"Náklady na prodej","Produkt nebo služba 4",{"$nulls":3},{"$f":"IFERROR(IF(VýnosyZProdeje[[#Totals],[Aktuální období]]=0,\"-\",VýnosyZProdeje[Aktuální období]/Výnosy_z_prodeje),\"-\")","v":"-"},{"$f":"IFERROR(IF(VýnosyZProdeje[Předchozí období]=VýnosyZProdeje[Aktuální období],0,IF(VýnosyZProdeje[Aktuální období]>VýnosyZProdeje[Předchozí období],ABS((VýnosyZProdeje[Aktuální období]/VýnosyZProdeje[Předchozí období])-1),IF(AND(VýnosyZProdeje[Aktuální období]<VýnosyZProdeje[Předchozí období],VýnosyZProdeje[Předchozí období]<0),-((VýnosyZProdeje[Aktuální období]/VýnosyZProdeje[Předchozí období])-1),(VýnosyZProdeje[Aktuální období]/VýnosyZProdeje[Předchozí období])-1))),\"-\")","v":{"v":0,"d":"0.00%"}},{"$f":"IFERROR(IF(VýnosyZProdeje[Rozpočet]=VýnosyZProdeje[Aktuální období],0,IF(VýnosyZProdeje[Aktuální období]>VýnosyZProdeje[Rozpočet],ABS((VýnosyZProdeje[Aktuální období]/VýnosyZProdeje[Rozpočet])-1),IF(AND(VýnosyZProdeje[Aktuální období]<VýnosyZProdeje[Rozpočet],VýnosyZProdeje[Rozpočet]<0),-((VýnosyZProdeje[Aktuální období]/VýnosyZProdeje[Rozpočet])-1),(VýnosyZProdeje[Aktuální období]/VýnosyZProdeje[Rozpočet])-1))),\"-\")","v":{"v":0,"d":"0.00%"}}]
[null,"Celkové výnosy z prodeje",null,{"$f":"SUBTOTAL(109,VýnosyZProdeje[Předchozí období])","v":0},{"$f":"SUBTOTAL(109,VýnosyZProdeje[Rozpočet])","v":0},{"$f":"SUBTOTAL(109,VýnosyZProdeje[Aktuální období])","v":0},{"$f":"SUBTOTAL(109,VýnosyZProdeje[Aktuální období jako procenta z prodeje])","v":{"v":0,"d":"0.00%"}},{"$f":"SUBTOTAL(109,VýnosyZProdeje[Změna oproti předchozímu období v procentech])","v":{"v":0,"d":"0.00%"}},{"$f":"SUBTOTAL(109,VýnosyZProdeje[Změna oproti rozpočtu v procentech])","v":{"v":0,"d":"0.00%"}}]

{"sheet":"Příjmy","index":2,"n_rows":7,"n_cols":9,"rows_kept":7,"merged":[[0,7,2,8]]}
[null,{"$f":"Název_sešitu","v":"Výkaz zisků a ztrát"}]
[null,{"$f":"Název_společnosti","v":"Název společnosti"},"Údaje v tisících"]
[null,"Příjmy",{"$f":"IFERROR(Příjmy[[#Totals],[Aktuální období]],\"-\")","v":0}]
[null,"Typ příjmu","Popis","Předchozí období","Rozpočet","Aktuální období","Aktuální období jako procenta z prodeje","Změna oproti předchozímu období v procentech","Změna oproti rozpočtu v procentech"]
[null,"Příjmy","Jiné příjmy",{"$nulls":3},{"$f":"IFERROR(IF(Výnosy_z_prodeje=0,\"-\",Příjmy[Aktuální období]/Výnosy_z_prodeje),\"-\")","v":"-"},{"$f":"IFERROR(IF(Příjmy[Předchozí období]=Příjmy[Aktuální období],0,IF(Příjmy[Aktuální období]>Příjmy[Předchozí období],ABS((Příjmy[Aktuální období]/Příjmy[Předchozí období])-1),IF(AND(Příjmy[Aktuální období]<Příjmy[Předchozí období],Příjmy[Předchozí období]<0),-((Příjmy[Aktuální období]/Příjmy[Předchozí období])-1),(Příjmy[Aktuální období]/Příjmy[Předchozí období])-1))),\"-\")","v":{"v":0,"d":"0.00%"}},{"$f":"IFERROR(IF(Příjmy[Rozpočet]=Příjmy[Aktuální období],0,IF(Příjmy[Aktuální období]>Příjmy[Rozpočet],ABS((Příjmy[Aktuální období]/Příjmy[Rozpočet])-1),IF(AND(Příjmy[Aktuální období]<Příjmy[Rozpočet],Příjmy[Rozpočet]<0),-((Příjmy[Aktuální období]/Příjmy[Rozpočet])-1),(Příjmy[Aktuální období]/Příjmy[Rozpočet])-1))),\"-\")","v":{"v":0,"d":"0.00%"}}]
[{"$nulls":6},{"$f":"IFERROR(IF(Výnosy_z_prodeje=0,\"-\",Příjmy[Aktuální období]/Výnosy_z_prodeje),\"-\")","v":"-"},{"$f":"IFERROR(IF(Příjmy[Předchozí období]=Příjmy[Aktuální období],0,IF(Příjmy[Aktuální období]>Příjmy[Předchozí období],ABS((Příjmy[Aktuální období]/Příjmy[Předchozí období])-1),IF(AND(Příjmy[Aktuální období]<Příjmy[Předchozí období],Příjmy[Předchozí období]<0),-((Příjmy[Aktuální období]/Příjmy[Předchozí období])-1),(Příjmy[Aktuální období]/Příjmy[Předchozí období])-1))),\"-\")","v":{"v":0,"d":"0.00%"}},{"$f":"IFERROR(IF(Příjmy[Rozpočet]=Příjmy[Aktuální období],0,IF(Příjmy[Aktuální období]>Příjmy[Rozpočet],ABS((Příjmy[Aktuální období]/Příjmy[Rozpočet])-1),IF(AND(Příjmy[Aktuální období]<Příjmy[Rozpočet],Příjmy[Rozpočet]<0),-((Příjmy[Aktuální období]/Příjmy[Rozpočet])-1),(Příjmy[Aktuální období]/Příjmy[Rozpočet])-1))),\"-\")","v":{"v":0,"d":"0.00%"}}]
[null,"Celkové příjmy z prodeje",null,{"$f":"SUBTOTAL(109,Příjmy[Předchozí období])","v":0},{"$f":"SUBTOTAL(109,Příjmy[Rozpočet])","v":0},{"$f":"SUBTOTAL(109,Příjmy[Aktuální období])","v":0},{"$f":"SUBTOTAL(109,Příjmy[Aktuální období jako procenta z prodeje])","v":{"v":0,"d":"0.00%"}},{"$f":"SUBTOTAL(109,Příjmy[Změna oproti předchozímu období v procentech])","v":{"v":0,"d":"0.00%"}},{"$f":"SUBTOTAL(109,Příjmy[Změna oproti rozpočtu v procentech])","v":{"v":0,"d":"0.00%"}}]

{"sheet":"Výdaje","index":3,"n_rows":25,"n_cols":9,"rows_kept":25,"merged":[[0,7,2,8]]}
[null,{"$f":"Název_sešitu","v":"Výkaz zisků a ztrát"}]
[null,{"$f":"Název_společnosti","v":"Název společnosti"},"Údaje v tisících"]
[null,"Provozní výdaje",{"$f":"IFERROR(ProvozníVýdaje[[#Totals],[Aktuální období]],\"-\")","v":0}]
[null,"Typ výdajů","Popis","Předchozí období","Rozpočet","Aktuální období","Aktuální období jako procenta z prodeje","Změna oproti předchozímu období v procentech","Změna oproti rozpočtu v procentech"]
[null,"Prodej a marketing","Reklama",{"$nulls":3},{"$f":"IFERROR(IF(Výnosy_z_prodeje=0,\"-\",ProvozníVýdaje[Aktuální období]/Výnosy_z_prodeje),\"-\")","v":"-"},{"$f":"IFERROR(IF(ProvozníVýdaje[Předchozí období]=ProvozníVýdaje[Aktuální období],0,IF(ProvozníVýdaje[Aktuální období]>ProvozníVýdaje[Předchozí období],ABS((ProvozníVýdaje[Aktuální období]/ProvozníVýdaje[Předchozí období])-1),IF(AND(ProvozníVýdaje[Aktuální období]<ProvozníVýdaje[Předchozí období],ProvozníVýdaje[Předchozí období]<0),-((ProvozníVýdaje[Aktuální období]/ProvozníVýdaje[Předchozí období])-1),(ProvozníVýdaje[Aktuální období]/ProvozníVýdaje[Předchozí období])-1))),\"-\")","v":{"v":0,"d":"0.00%"}},{"$f":"IFERROR(IF(ProvozníVýdaje[Rozpočet]=ProvozníVýdaje[Aktuální období],0,IF(ProvozníVýdaje[Aktuální období]>ProvozníVýdaje[Rozpočet],ABS((ProvozníVýdaje[Aktuální období]/ProvozníVýdaje[Rozpočet])-1),IF(AND(ProvozníVýdaje[Aktuální období]<ProvozníVýdaje[Rozpočet],ProvozníVýdaje[Rozpočet]<0),-((ProvozníVýdaje[Aktuální období]/ProvozníVýdaje[Rozpočet])-1),(ProvozníVýdaje[Aktuální období]/ProvozníVýdaje[Rozpočet])-1))),\"-\")","v":{"v":0,"d":"0.00%"}}]
[null,"Prodej a marketing","Přímý marketing",{"$nulls":3},{"$f":"IFERROR(IF(Výnosy_z_prodeje=0,\"-\",ProvozníVýdaje[Aktuální období]/Výnosy_z_prodeje),\"-\")","v":"-"},{"$f":"IFERROR(IF(ProvozníVýdaje[Předchozí období]=ProvozníVýdaje[Aktuální období],0,IF(ProvozníVýdaje[Aktuální období]>ProvozníVýdaje[Předchozí období],ABS((ProvozníVýdaje[Aktuální období]/ProvozníVýdaje[Předchozí období])-1),IF(AND(ProvozníVýdaje[Aktuální období]<ProvozníVýdaje[Předchozí období],ProvozníVýdaje[Předchozí období]<0),-((ProvozníVýdaje[Aktuální období]/ProvozníVýdaje[Předchozí období])-1),(ProvozníVýdaje[Aktuální období]/ProvozníVýdaje[Předchozí období])-1))),\"-\")","v":{"v":0,"d":"0.00%"}},{"$f":"IFERROR(IF(ProvozníVýdaje[Rozpočet]=ProvozníVýdaje[Aktuální období],0,IF(ProvozníVýdaje[Aktuální období]>ProvozníVýdaje[Rozpočet],ABS((ProvozníVýdaje[Aktuální období]/ProvozníVýdaje[Rozpočet])-1),IF(AND(ProvozníVýdaje[Aktuální období]<ProvozníVýdaje[Rozpočet],ProvozníVýdaje[Rozpočet]<0),-((ProvozníVýdaje[Aktuální období]/ProvozníVýdaje[Rozpočet])-1),(ProvozníVýdaje[Aktuální období]/ProvozníVýdaje[Rozpočet])-1))),\"-\")","v":{"v":0,"d":"0.00%"}}]
[null,"Prodej a marketing","Jiné výdaje (upřesněte)",{"$nulls":3},{"$f":"IFERROR(IF(Výnosy_z_prodeje=0,\"-\",ProvozníVýdaje[Aktuální období]/Výnosy_z_prodeje),\"-\")","v":"-"},{"$f":"IFERROR(IF(ProvozníVýdaje[Předchozí období]=ProvozníVýdaje[Aktuální období],0,IF(ProvozníVýdaje[Aktuální období]>ProvozníVýdaje[Předchozí období],ABS((ProvozníVýdaje[Aktuální období]/ProvozníVýdaje[Předchozí období])-1),IF(AND(ProvozníVýdaje[Aktuální období]<ProvozníVýdaje[Předchozí období],ProvozníVýdaje[Předchozí období]<0),-((ProvozníVýdaje[Aktuální období]/ProvozníVýdaje[Předchozí období])-1),(ProvozníVýdaje[Aktuální období]/ProvozníVýdaje[Předchozí období])-1))),\"-\")","v":{"v":0,"d":"0.00%"}},{"$f":"IFERROR(IF(ProvozníVýdaje[Rozpočet]=ProvozníVýdaje[Aktuální období],0,IF(ProvozníVýdaje[Aktuální období]>ProvozníVýdaje[Rozpočet],ABS((ProvozníVýdaje[Aktuální období]/ProvozníVýdaje[Rozpočet])-1),IF(AND(ProvozníVýdaje[Aktuální období]<ProvozníVýdaje[Rozpočet],ProvozníVýdaje[Rozpočet]<0),-((ProvozníVýdaje[Aktuální období]/ProvozníVýdaje[Rozpočet])-1),(ProvozníVýdaje[Aktuální období]/ProvozníVýdaje[Rozpočet])-1))),\"-\")","v":{"v":0,"d":"0.00%"}}]
[null,"Prodej a marketing","Jiné výdaje (upřesněte)",{"$nulls":3},{"$f":"IFERROR(IF(Výnosy_z_prodeje=0,\"-\",ProvozníVýdaje[Aktuální období]/Výnosy_z_prodeje),\"-\")","v":"-"},{"$f":"IFERROR(IF(ProvozníVýdaje[Předchozí období]=ProvozníVýdaje[Aktuální období],0,IF(ProvozníVýdaje[Aktuální období]>ProvozníVýdaje[Předchozí období],ABS((ProvozníVýdaje[Aktuální období]/ProvozníVýdaje[Předchozí období])-1),IF(AND(ProvozníVýdaje[Aktuální období]<ProvozníVýdaje[Předchozí období],ProvozníVýdaje[Předchozí období]<0),-((ProvozníVýdaje[Aktuální období]/ProvozníVýdaje[Předchozí období])-1),(ProvozníVýdaje[Aktuální období]/ProvozníVýdaje[Předchozí období])-1))),\"-\")","v":{"v":0,"d":"0.00%"}},{"$f":"IFERROR(IF(ProvozníVýdaje[Rozpočet]=ProvozníVýdaje[Aktuální období],0,IF(ProvozníVýdaje[Aktuální období]>ProvozníVýdaje[Rozpočet],ABS((ProvozníVýdaje[Aktuální období]/ProvozníVýdaje[Rozpočet])-1),IF(AND(ProvozníVýdaje[Aktuální období]<ProvozníVýdaje[Rozpočet],ProvozníVýdaje[Rozpočet]<0),-((ProvozníVýdaje[Aktuální období]/ProvozníVýdaje[Rozpočet])-1),(ProvozníVýdaje[Aktuální období]/ProvozníVýdaje[Rozpočet])-1))),\"-\")","v":{"v":0,"d":"0.00%"}}]
[null,"Výzkum a vývoj","Licence na technologie",{"$nulls":3},{"$f":"IFERROR(IF(Výnosy_z_prodeje=0,\"-\",ProvozníVýdaje[Aktuální období]/Výnosy_z_prodeje),\"-\")","v":"-"},{"$f":"IFERROR(IF(ProvozníVýdaje[Předchozí období]=ProvozníVýdaje[Aktuální období],0,IF(ProvozníVýdaje[Aktuální období]>ProvozníVýdaje[Předchozí období],ABS((ProvozníVýdaje[Aktuální období]/ProvozníVýdaje[Předchozí období])-1),IF(AND(ProvozníVýdaje[Aktuální období]<ProvozníVýdaje[Předchozí období],ProvozníVýdaje[Předchozí období]<0),-((ProvozníVýdaje[Aktuální období]/ProvozníVýdaje[Předchozí období])-1),(ProvozníVýdaje[Aktuální období]/ProvozníVýdaje[Předchozí období])-1))),\"-\")","v":{"v":0,"d":"0.00%"}},{"$f":"IFERROR(IF(ProvozníVýdaje[Rozpočet]=ProvozníVýdaje[Aktuální období],0,IF(ProvozníVýdaje[Aktuální období]>ProvozníVýdaje[Rozpočet],ABS((ProvozníVýdaje[Aktuální období]/ProvozníVýdaje[Rozpočet])-1),IF(AND(ProvozníVýdaje[Aktuální období]<ProvozníVýdaje[Rozpočet],ProvozníVýdaje[Rozpočet]<0),-((ProvozníVýdaje[Aktuální období]/ProvozníVýdaje[Rozpočet])-1),(ProvozníVýdaje[Aktuální období]/ProvozníVýdaje[Rozpočet])-1))),\"-\")","v":{"v":0,"d":"0.00%"}}]
[null,"Výzkum a vývoj","Patenty ",{"$nulls":3},{"$f":"IFERROR(IF(Výnosy_z_prodeje=0,\"-\",ProvozníVýdaje[Aktuální období]/Výnosy_z_prodeje),\"-\")","v":"-"},{"$f":"IFERROR(IF(ProvozníVýdaje[Předchozí období]=ProvozníVýdaje[Aktuální období],0,IF(ProvozníVýdaje[Aktuální období]>ProvozníVýdaje[Předchozí období],ABS((ProvozníVýdaje[Aktuální období]/ProvozníVýdaje[Předchozí období])-1),IF(AND(ProvozníVýdaje[Aktuální období]<ProvozníVýdaje[Předchozí období],ProvozníVýdaje[Předchozí období]<0),-((ProvozníVýdaje[Aktuální období]/ProvozníVýdaje[Předchozí období])-1),(ProvozníVýdaje[Aktuální období]/ProvozníVýdaje[Předchozí období])-1))),\"-\")","v":{"v":0,"d":"0.00%"}},{"$f":"IFERROR(IF(ProvozníVýdaje[Rozpočet]=ProvozníVýdaje[Aktuální období],0,IF(ProvozníVýdaje[Aktuální období]>ProvozníVýdaje[Rozpočet],ABS((ProvozníVýdaje[Aktuální období]/ProvozníVýdaje[Rozpočet])-1),IF(AND(ProvozníVýdaje[Aktuální období]<ProvozníVýdaje[Rozpočet],ProvozníVýdaje[Rozpočet]<0),-((ProvozníVýdaje[Aktuální období]/ProvozníVýdaje[Rozpočet])-1),(ProvozníVýdaje[Aktuální období]/ProvozníVýdaje[Rozpočet])-1))),\"-\")","v":{"v":0,"d":"0.00%"}}]
[null,"Výzkum a vývoj","Jiné výdaje (upřesněte)",{"$nulls":3},{"$f":"IFERROR(IF(Výnosy_z_prodeje=0,\"-\",ProvozníVýdaje[Aktuální období]/Výnosy_z_prodeje),\"-\")","v":"-"},{"$f":"IFERROR(IF(ProvozníVýdaje[Předchozí období]=ProvozníVýdaje[Aktuální období],0,IF(ProvozníVýdaje[Aktuální období]>ProvozníVýdaje[Předchozí období],ABS((ProvozníVýdaje[Aktuální období]/ProvozníVýdaje[Předchozí období])-1),IF(AND(ProvozníVýdaje[Aktuální období]<ProvozníVýdaje[Předchozí období],ProvozníVýdaje[Předchozí období]<0),-((ProvozníVýdaje[Aktuální období]/ProvozníVýdaje[Předchozí období])-1),(ProvozníVýdaje[Aktuální období]/ProvozníVýdaje[Předchozí období])-1))),\"-\")","v":{"v":0,"d":"0.00%"}},{"$f":"IFERROR(IF(ProvozníVýdaje[Rozpočet]=ProvozníVýdaje[Aktuální období],0,IF(ProvozníVýdaje[Aktuální období]>ProvozníVýdaje[Rozpočet],ABS((ProvozníVýdaje[Aktuální období]/ProvozníVýdaje[Rozpočet])-1),IF(AND(ProvozníVýdaje[Aktuální období]<ProvozníVýdaje[Rozpočet],ProvozníVýdaje[Rozpočet]<0),-((ProvozníVýdaje[Aktuální období]/ProvozníVýdaje[Rozpočet])-1),(ProvozníVýdaje[Aktuální období]/ProvozníVýdaje[Rozpočet])-1))),\"-\")","v":{"v":0,"d":"0.00%"}}]
[null,"Výzkum a vývoj","Jiné výdaje (upřesněte)",{"$nulls":3},{"$f":"IFERROR(IF(Výnosy_z_prodeje=0,\"-\",ProvozníVýdaje[Aktuální období]/Výnosy_z_prodeje),\"-\")","v":"-"},{"$f":"IFERROR(IF(ProvozníVýdaje[Předchozí období]=ProvozníVýdaje[Aktuální období],0,IF(ProvozníVýdaje[Aktuální období]>ProvozníVýdaje[Předchozí období],ABS((ProvozníVýdaje[Aktuální období]/ProvozníVýdaje[Předchozí období])-1),IF(AND(ProvozníVýdaje[Aktuální období]<ProvozníVýdaje[Předchozí období],ProvozníVýdaje[Předchozí období]<0),-((ProvozníVýdaje[Aktuální období]/ProvozníVýdaje[Předchozí období])-1),(ProvozníVýdaje[Aktuální období]/ProvozníVýdaje[Předchozí období])-1))),\"-\")","v":{"v":0,"d":"0.00%"}},{"$f":"IFERROR(IF(ProvozníVýdaje[Rozpočet]=ProvozníVýdaje[Aktuální období],0,IF(ProvozníVýdaje[Aktuální období]>ProvozníVýdaje[Rozpočet],ABS((ProvozníVýdaje[Aktuální období]/ProvozníVýdaje[Rozpočet])-1),IF(AND(ProvozníVýdaje[Aktuální období]<ProvozníVýdaje[Rozpočet],ProvozníVýdaje[Rozpočet]<0),-((ProvozníVýdaje[Aktuální období]/ProvozníVýdaje[Rozpočet])-1),(ProvozníVýdaje[Aktuální období]/ProvozníVýdaje[Rozpočet])-1))),\"-\")","v":{"v":0,"d":"0.00%"}}]
[null,"Obecné a administrativní","Mzdy a odměny",{"$nulls":3},{"$f":"IFERROR(IF(Výnosy_z_prodeje=0,\"-\",ProvozníVýdaje[Aktuální období]/Výnosy_z_prodeje),\"-\")","v":"-"},{"$f":"IFERROR(IF(ProvozníVýdaje[Předchozí období]=ProvozníVýdaje[Aktuální období],0,IF(ProvozníVýdaje[Aktuální období]>ProvozníVýdaje[Předchozí období],ABS((ProvozníVýdaje[Aktuální období]/ProvozníVýdaje[Předchozí období])-1),IF(AND(ProvozníVýdaje[Aktuální období]<ProvozníVýdaje[Předchozí období],ProvozníVýdaje[Předchozí období]<0),-((ProvozníVýdaje[Aktuální období]/ProvozníVýdaje[Předchozí období])-1),(ProvozníVýdaje[Aktuální období]/ProvozníVýdaje[Předchozí období])-1))),\"-\")","v":{"v":0,"d":"0.00%"}},{"$f":"IFERROR(IF(ProvozníVýdaje[Rozpočet]=ProvozníVýdaje[Aktuální období],0,IF(ProvozníVýdaje[Aktuální období]>ProvozníVýdaje[Rozpočet],ABS((ProvozníVýdaje[Aktuální období]/ProvozníVýdaje[Rozpočet])-1),IF(AND(ProvozníVýdaje[Aktuální období]<ProvozníVýdaje[Rozpočet],ProvozníVýdaje[Rozpočet]<0),-((ProvozníVýdaje[Aktuální období]/ProvozníVýdaje[Rozpočet])-1),(ProvozníVýdaje[Aktuální období]/ProvozníVýdaje[Rozpočet])-1))),\"-\")","v":{"v":0,"d":"0.00%"}}]
[null,"Obecné a administrativní","Externí služby",{"$nulls":3},{"$f":"IFERROR(IF(Výnosy_z_prodeje=0,\"-\",ProvozníVýdaje[Aktuální období]/Výnosy_z_prodeje),\"-\")","v":"-"},{"$f":"IFERROR(IF(ProvozníVýdaje[Předchozí období]=ProvozníVýdaje[Aktuální období],0,IF(ProvozníVýdaje[Aktuální období]>ProvozníVýdaje[Předchozí období],ABS((ProvozníVýdaje[Aktuální období]/ProvozníVýdaje[Předchozí období])-1),IF(AND(ProvozníVýdaje[Aktuální období]<ProvozníVýdaje[Předchozí období],ProvozníVýdaje[Předchozí období]<0),-((ProvozníVýdaje[Aktuální období]/ProvozníVýdaje[Předchozí období])-1),(ProvozníVýdaje[Aktuální období]/ProvozníVýdaje[Předchozí období])-1))),\"-\")","v":{"v":0,"d":"0.00%"}},{"$f":"IFERROR(IF(ProvozníVýdaje[Rozpočet]=ProvozníVýdaje[Aktuální období],0,IF(ProvozníVýdaje[Aktuální období]>ProvozníVýdaje[Rozpočet],ABS((ProvozníVýdaje[Aktuální období]/ProvozníVýdaje[Rozpočet])-1),IF(AND(ProvozníVýdaje[Aktuální období]<ProvozníVýdaje[Rozpočet],ProvozníVýdaje[Rozpočet]<0),-((ProvozníVýdaje[Aktuální období]/ProvozníVýdaje[Rozpočet])-1),(ProvozníVýdaje[Aktuální období]/ProvozníVýdaje[Rozpočet])-1))),\"-\")","v":{"v":0,"d":"0.00%"}}]
[null,"Obecné a administrativní","Pomůcky",{"$nulls":3},{"$f":"IFERROR(IF(Výnosy_z_prodeje=0,\"-\",ProvozníVýdaje[Aktuální období]/Výnosy_z_prodeje),\"-\")","v":"-"},{"$f":"IFERROR(IF(ProvozníVýdaje[Předchozí období]=ProvozníVýdaje[Aktuální období],0,IF(ProvozníVýdaje[Aktuální období]>ProvozníVýdaje[Předchozí období],ABS((ProvozníVýdaje[Aktuální období]/ProvozníVýdaje[Předchozí období])-1),IF(AND(ProvozníVýdaje[Aktuální období]<ProvozníVýdaje[Předchozí období],ProvozníVýdaje[Předchozí období]<0),-((ProvozníVýdaje[Aktuální období]/ProvozníVýdaje[Předchozí období])-1),(ProvozníVýdaje[Aktuální období]/ProvozníVýdaje[Předchozí období])-1))),\"-\")","v":{"v":0,"d":"0.00%"}},{"$f":"IFERROR(IF(ProvozníVýdaje[Rozpočet]=ProvozníVýdaje[Aktuální období],0,IF(ProvozníVýdaje[Aktuální období]>ProvozníVýdaje[Rozpočet],ABS((ProvozníVýdaje[Aktuální období]/ProvozníVýdaje[Rozpočet])-1),IF(AND(ProvozníVýdaje[Aktuální období]<ProvozníVýdaje[Rozpočet],ProvozníVýdaje[Rozpočet]<0),-((ProvozníVýdaje[Aktuální období]/ProvozníVýdaje[Rozpočet])-1),(ProvozníVýdaje[Aktuální období]/ProvozníVýdaje[Rozpočet])-1))),\"-\")","v":{"v":0,"d":"0.00%"}}]
[null,"Obecné a administrativní","Jídlo a zábava",{"$nulls":3},{"$f":"IFERROR(IF(Výnosy_z_prodeje=0,\"-\",ProvozníVýdaje[Aktuální období]/Výnosy_z_prodeje),\"-\")","v":"-"},{"$f":"IFERROR(IF(ProvozníVýdaje[Předchozí období]=ProvozníVýdaje[Aktuální období],0,IF(ProvozníVýdaje[Aktuální období]>ProvozníVýdaje[Předchozí období],ABS((ProvozníVýdaje[Aktuální období]/ProvozníVýdaje[Předchozí období])-1),IF(AND(ProvozníVýdaje[Aktuální období]<ProvozníVýdaje[Předchozí období],ProvozníVýdaje[Předchozí období]<0),-((ProvozníVýdaje[Aktuální období]/ProvozníVýdaje[Předchozí období])-1),(ProvozníVýdaje[Aktuální období]/ProvozníVýdaje[Předchozí období])-1))),\"-\")","v":{"v":0,"d":"0.00%"}},{"$f":"IFERROR(IF(ProvozníVýdaje[Rozpočet]=ProvozníVýdaje[Aktuální období],0,IF(ProvozníVýdaje[Aktuální období]>ProvozníVýdaje[Rozpočet],ABS((ProvozníVýdaje[Aktuální období]/ProvozníVýdaje[Rozpočet])-1),IF(AND(ProvozníVýdaje[Aktuální období]<ProvozníVýdaje[Rozpočet],ProvozníVýdaje[Rozpočet]<0),-((ProvozníVýdaje[Aktuální období]/ProvozníVýdaje[Rozpočet])-1),(ProvozníVýdaje[Aktuální období]/ProvozníVýdaje[Rozpočet])-1))),\"-\")","v":{"v":0,"d":"0.00%"}}]
[null,"Obecné a administrativní","Nájemné",{"$nulls":3},{"$f":"IFERROR(IF(Výnosy_z_prodeje=0,\"-\",ProvozníVýdaje[Aktuální období]/Výnosy_z_prodeje),\"-\")","v":"-"},{"$f":"IFERROR(IF(ProvozníVýdaje[Předchozí období]=ProvozníVýdaje[Aktuální období],0,IF(ProvozníVýdaje[Aktuální období]>ProvozníVýdaje[Předchozí období],ABS((ProvozníVýdaje[Aktuální období]/ProvozníVýdaje[Předchozí období])-1),IF(AND(ProvozníVýdaje[Aktuální období]<ProvozníVýdaje[Předchozí období],ProvozníVýdaje[Předchozí období]<0),-((ProvozníVýdaje[Aktuální období]/ProvozníVýdaje[Předchozí období])-1),(ProvozníVýdaje[Aktuální období]/ProvozníVýdaje[Předchozí období])-1))),\"-\")","v":{"v":0,"d":"0.00%"}},{"$f":"IFERROR(IF(ProvozníVýdaje[Rozpočet]=ProvozníVýdaje[Aktuální období],0,IF(ProvozníVýdaje[Aktuální období]>ProvozníVýdaje[Rozpočet],ABS((ProvozníVýdaje[Aktuální období]/ProvozníVýdaje[Rozpočet])-1),IF(AND(ProvozníVýdaje[Aktuální období]<ProvozníVýdaje[Rozpočet],ProvozníVýdaje[Rozpočet]<0),-((ProvozníVýdaje[Aktuální období]/ProvozníVýdaje[Rozpočet])-1),(ProvozníVýdaje[Aktuální období]/ProvozníVýdaje[Rozpočet])-1))),\"-\")","v":{"v":0,"d":"0.00%"}}]
[null,"Obecné a administrativní","Telefony",{"$nulls":3},{"$f":"IFERROR(IF(Výnosy_z_prodeje=0,\"-\",ProvozníVýdaje[Aktuální období]/Výnosy_z_prodeje),\"-\")","v":"-"},{"$f":"IFERROR(IF(ProvozníVýdaje[Předchozí období]=ProvozníVýdaje[Aktuální období],0,IF(ProvozníVýdaje[Aktuální období]>ProvozníVýdaje[Předchozí období],ABS((ProvozníVýdaje[Aktuální období]/ProvozníVýdaje[Předchozí období])-1),IF(AND(ProvozníVýdaje[Aktuální období]<ProvozníVýdaje[Předchozí období],ProvozníVýdaje[Předchozí období]<0),-((ProvozníVýdaje[Aktuální období]/ProvozníVýdaje[Předchozí období])-1),(ProvozníVýdaje[Aktuální období]/ProvozníVýdaje[Předchozí období])-1))),\"-\")","v":{"v":0,"d":"0.00%"}},{"$f":"IFERROR(IF(ProvozníVýdaje[Rozpočet]=ProvozníVýdaje[Aktuální období],0,IF(ProvozníVýdaje[Aktuální období]>ProvozníVýdaje[Rozpočet],ABS((ProvozníVýdaje[Aktuální období]/ProvozníVýdaje[Rozpočet])-1),IF(AND(ProvozníVýdaje[Aktuální období]<ProvozníVýdaje[Rozpočet],ProvozníVýdaje[Rozpočet]<0),-((ProvozníVýdaje[Aktuální období]/ProvozníVýdaje[Rozpočet])-1),(ProvozníVýdaje[Aktuální období]/ProvozníVýdaje[Rozpočet])-1))),\"-\")","v":{"v":0,"d":"0.00%"}}]
[null,"Obecné a administrativní","Služby",{"$nulls":3},{"$f":"IFERROR(IF(Výnosy_z_prodeje=0,\"-\",ProvozníVýdaje[Aktuální období]/Výnosy_z_prodeje),\"-\")","v":"-"},{"$f":"IFERROR(IF(ProvozníVýdaje[Předchozí období]=ProvozníVýdaje[Aktuální období],0,IF(ProvozníVýdaje[Aktuální období]>ProvozníVýdaje[Předchozí období],ABS((ProvozníVýdaje[Aktuální období]/ProvozníVýdaje[Předchozí období])-1),IF(AND(ProvozníVýdaje[Aktuální období]<ProvozníVýdaje[Předchozí období],ProvozníVýdaje[Předchozí období]<0),-((ProvozníVýdaje[Aktuální období]/ProvozníVýdaje[Předchozí období])-1),(ProvozníVýdaje[Aktuální období]/ProvozníVýdaje[Předchozí období])-1))),\"-\")","v":{"v":0,"d":"0.00%"}},{"$f":"IFERROR(IF(ProvozníVýdaje[Rozpočet]=ProvozníVýdaje[Aktuální období],0,IF(ProvozníVýdaje[Aktuální období]>ProvozníVýdaje[Rozpočet],ABS((ProvozníVýdaje[Aktuální období]/ProvozníVýdaje[Rozpočet])-1),IF(AND(ProvozníVýdaje[Aktuální období]<ProvozníVýdaje[Rozpočet],ProvozníVýdaje[Rozpočet]<0),-((ProvozníVýdaje[Aktuální období]/ProvozníVýdaje[Rozpočet])-1),(ProvozníVýdaje[Aktuální období]/ProvozníVýdaje[Rozpočet])-1))),\"-\")","v":{"v":0,"d":"0.00%"}}]
[null,"Obecné a administrativní","Odpisy",{"$nulls":3},{"$f":"IFERROR(IF(Výnosy_z_prodeje=0,\"-\",ProvozníVýdaje[Aktuální období]/Výnosy_z_prodeje),\"-\")","v":"-"},{"$f":"IFERROR(IF(ProvozníVýdaje[Předchozí období]=ProvozníVýdaje[Aktuální období],0,IF(ProvozníVýdaje[Aktuální období]>ProvozníVýdaje[Předchozí období],ABS((ProvozníVýdaje[Aktuální období]/ProvozníVýdaje[Předchozí období])-1),IF(AND(ProvozníVýdaje[Aktuální období]<ProvozníVýdaje[Předchozí období],ProvozníVýdaje[Předchozí období]<0),-((ProvozníVýdaje[Aktuální období]/ProvozníVýdaje[Předchozí období])-1),(ProvozníVýdaje[Aktuální období]/ProvozníVýdaje[Předchozí období])-1))),\"-\")","v":{"v":0,"d":"0.00%"}},{"$f":"IFERROR(IF(ProvozníVýdaje[Rozpočet]=ProvozníVýdaje[Aktuální období],0,IF(ProvozníVýdaje[Aktuální období]>ProvozníVýdaje[Rozpočet],ABS((ProvozníVýdaje[Aktuální období]/ProvozníVýdaje[Rozpočet])-1),IF(AND(ProvozníVýdaje[Aktuální období]<ProvozníVýdaje[Rozpočet],ProvozníVýdaje[Rozpočet]<0),-((ProvozníVýdaje[Aktuální období]/ProvozníVýdaje[Rozpočet])-1),(ProvozníVýdaje[Aktuální období]/ProvozníVýdaje[Rozpočet])-1))),\"-\")","v":{"v":0,"d":"0.00%"}}]
[null,"Obecné a administrativní","Pojištění",{"$nulls":3},{"$f":"IFERROR(IF(Výnosy_z_prodeje=0,\"-\",ProvozníVýdaje[Aktuální období]/Výnosy_z_prodeje),\"-\")","v":"-"},{"$f":"IFERROR(IF(ProvozníVýdaje[Předchozí období]=ProvozníVýdaje[Aktuální období],0,IF(ProvozníVýdaje[Aktuální období]>ProvozníVýdaje[Předchozí období],ABS((ProvozníVýdaje[Aktuální období]/ProvozníVýdaje[Předchozí období])-1),IF(AND(ProvozníVýdaje[Aktuální období]<ProvozníVýdaje[Předchozí období],ProvozníVýdaje[Předchozí období]<0),-((ProvozníVýdaje[Aktuální období]/ProvozníVýdaje[Předchozí období])-1),(ProvozníVýdaje[Aktuální období]/ProvozníVýdaje[Předchozí období])-1))),\"-\")","v":{"v":0,"d":"0.00%"}},{"$f":"IFERROR(IF(ProvozníVýdaje[Rozpočet]=ProvozníVýdaje[Aktuální období],0,IF(ProvozníVýdaje[Aktuální období]>ProvozníVýdaje[Rozpočet],ABS((ProvozníVýdaje[Aktuální období]/ProvozníVýdaje[Rozpočet])-1),IF(AND(ProvozníVýdaje[Aktuální období]<ProvozníVýdaje[Rozpočet],ProvozníVýdaje[Rozpočet]<0),-((ProvozníVýdaje[Aktuální období]/ProvozníVýdaje[Rozpočet])-1),(ProvozníVýdaje[Aktuální období]/ProvozníVýdaje[Rozpočet])-1))),\"-\")","v":{"v":0,"d":"0.00%"}}]
[null,"Obecné a administrativní","Opravy a údržba",{"$nulls":3},{"$f":"IFERROR(IF(Výnosy_z_prodeje=0,\"-\",ProvozníVýdaje[Aktuální období]/Výnosy_z_prodeje),\"-\")","v":"-"},{"$f":"IFERROR(IF(ProvozníVýdaje[Předchozí období]=ProvozníVýdaje[Aktuální období],0,IF(ProvozníVýdaje[Aktuální období]>ProvozníVýdaje[Předchozí období],ABS((ProvozníVýdaje[Aktuální období]/ProvozníVýdaje[Předchozí období])-1),IF(AND(ProvozníVýdaje[Aktuální období]<ProvozníVýdaje[Předchozí období],ProvozníVýdaje[Předchozí období]<0),-((ProvozníVýdaje[Aktuální období]/ProvozníVýdaje[Předchozí období])-1),(ProvozníVýdaje[Aktuální období]/ProvozníVýdaje[Předchozí období])-1))),\"-\")","v":{"v":0,"d":"0.00%"}},{"$f":"IFERROR(IF(ProvozníVýdaje[Rozpočet]=ProvozníVýdaje[Aktuální období],0,IF(ProvozníVýdaje[Aktuální období]>ProvozníVýdaje[Rozpočet],ABS((ProvozníVýdaje[Aktuální období]/ProvozníVýdaje[Rozpočet])-1),IF(AND(ProvozníVýdaje[Aktuální období]<ProvozníVýdaje[Rozpočet],ProvozníVýdaje[Rozpočet]<0),-((ProvozníVýdaje[Aktuální období]/ProvozníVýdaje[Rozpočet])-1),(ProvozníVýdaje[Aktuální období]/ProvozníVýdaje[Rozpočet])-1))),\"-\")","v":{"v":0,"d":"0.00%"}}]
[null,"Obecné a administrativní","Jiné výdaje (upřesněte)",{"$nulls":3},{"$f":"IFERROR(IF(Výnosy_z_prodeje=0,\"-\",ProvozníVýdaje[Aktuální období]/Výnosy_z_prodeje),\"-\")","v":"-"},{"$f":"IFERROR(IF(ProvozníVýdaje[Předchozí období]=ProvozníVýdaje[Aktuální období],0,IF(ProvozníVýdaje[Aktuální období]>ProvozníVýdaje[Předchozí období],ABS((ProvozníVýdaje[Aktuální období]/ProvozníVýdaje[Předchozí období])-1),IF(AND(ProvozníVýdaje[Aktuální období]<ProvozníVýdaje[Předchozí období],ProvozníVýdaje[Předchozí období]<0),-((ProvozníVýdaje[Aktuální období]/ProvozníVýdaje[Předchozí období])-1),(ProvozníVýdaje[Aktuální období]/ProvozníVýdaje[Předchozí období])-1))),\"-\")","v":{"v":0,"d":"0.00%"}},{"$f":"IFERROR(IF(ProvozníVýdaje[Rozpočet]=ProvozníVýdaje[Aktuální období],0,IF(ProvozníVýdaje[Aktuální období]>ProvozníVýdaje[Rozpočet],ABS((ProvozníVýdaje[Aktuální období]/ProvozníVýdaje[Rozpočet])-1),IF(AND(ProvozníVýdaje[Aktuální období]<ProvozníVýdaje[Rozpočet],ProvozníVýdaje[Rozpočet]<0),-((ProvozníVýdaje[Aktuální období]/ProvozníVýdaje[Rozpočet])-1),(ProvozníVýdaje[Aktuální období]/ProvozníVýdaje[Rozpočet])-1))),\"-\")","v":{"v":0,"d":"0.00%"}}]
[null,"Obecné a administrativní","Jiné výdaje (upřesněte)",{"$nulls":3},{"$f":"IFERROR(IF(Výnosy_z_prodeje=0,\"-\",ProvozníVýdaje[Aktuální období]/Výnosy_z_prodeje),\"-\")","v":"-"},{"$f":"IFERROR(IF(ProvozníVýdaje[Předchozí období]=ProvozníVýdaje[Aktuální období],0,IF(ProvozníVýdaje[Aktuální období]>ProvozníVýdaje[Předchozí období],ABS((ProvozníVýdaje[Aktuální období]/ProvozníVýdaje[Předchozí období])-1),IF(AND(ProvozníVýdaje[Aktuální období]<ProvozníVýdaje[Předchozí období],ProvozníVýdaje[Předchozí období]<0),-((ProvozníVýdaje[Aktuální období]/ProvozníVýdaje[Předchozí období])-1),(ProvozníVýdaje[Aktuální období]/ProvozníVýdaje[Předchozí období])-1))),\"-\")","v":{"v":0,"d":"0.00%"}},{"$f":"IFERROR(IF(ProvozníVýdaje[Rozpočet]=ProvozníVýdaje[Aktuální období],0,IF(ProvozníVýdaje[Aktuální období]>ProvozníVýdaje[Rozpočet],ABS((ProvozníVýdaje[Aktuální období]/ProvozníVýdaje[Rozpočet])-1),IF(AND(ProvozníVýdaje[Aktuální období]<ProvozníVýdaje[Rozpočet],ProvozníVýdaje[Rozpočet]<0),-((ProvozníVýdaje[Aktuální období]/ProvozníVýdaje[Rozpočet])-1),(ProvozníVýdaje[Aktuální období]/ProvozníVýdaje[Rozpočet])-1))),\"-\")","v":{"v":0,"d":"0.00%"}}]
[null,"Celkové provozní výdaje",null,{"$f":"SUBTOTAL(109,ProvozníVýdaje[Předchozí období])","v":0},{"$f":"SUBTOTAL(109,ProvozníVýdaje[Rozpočet])","v":0},{"$f":"SUBTOTAL(109,ProvozníVýdaje[Aktuální období])","v":0},{"$f":"SUBTOTAL(109,ProvozníVýdaje[Aktuální období jako procenta z prodeje])","v":{"v":0,"d":"0.00%"}},{"$f":"SUBTOTAL(109,ProvozníVýdaje[Změna oproti předchozímu období v procentech])","v":{"v":0,"d":"0.00%"}},{"$f":"SUBTOTAL(109,ProvozníVýdaje[Změna oproti rozpočtu v procentech])","v":{"v":0,"d":"0.00%"}}]

{"sheet":"Daně","index":4,"n_rows":10,"n_cols":9,"rows_kept":10,"merged":[[0,7,2,8]]}
[null,{"$f":"Název_sešitu","v":"Výkaz zisků a ztrát"}]
[null,{"$f":"Název_společnosti","v":"Název společnosti"},"Údaje v tisících"]
[null,"Daně",{"$f":"IFERROR(Daně[[#Totals],[Aktuální období]],\"-\")","v":0}]
[null,"Typ","Popis","Předchozí období","Rozpočet","Aktuální období","Aktuální období jako procenta z prodeje","Změna oproti předchozímu období v procentech","Změna oproti rozpočtu v procentech"]
[null,"Daně","Daně z příjmů",{"$nulls":3},{"$f":"IFERROR(IF(Výnosy_z_prodeje=0,\"-\",Daně[Aktuální období]/Výnosy_z_prodeje),\"-\")","v":"-"},{"$f":"IFERROR(IF(Daně[Předchozí období]=Daně[Aktuální období],0,IF(Daně[Aktuální období]>Daně[Předchozí období],ABS((Daně[Aktuální období]/Daně[Předchozí období])-1),IF(AND(Daně[Aktuální období]<Daně[Předchozí období],Daně[Předchozí období]<0),-((Daně[Aktuální období]/Daně[Předchozí období])-1),(Daně[Aktuální období]/Daně[Předchozí období])-1))),\"-\")","v":{"v":0,"d":"0.00%"}},{"$f":"IFERROR(IF(Daně[Rozpočet]=Daně[Aktuální období],0,IF(Daně[Aktuální období]>Daně[Rozpočet],ABS((Daně[Aktuální období]/Daně[Rozpočet])-1),IF(AND(Daně[Aktuální období]<Daně[Rozpočet],Daně[Rozpočet]<0),-((Daně[Aktuální období]/Daně[Rozpočet])-1),(Daně[Aktuální období]/Daně[Rozpočet])-1))),\"-\")","v":{"v":0,"d":"0.00%"}}]
[null,"Daně","Daně z mezd",{"$nulls":3},{"$f":"IFERROR(IF(Výnosy_z_prodeje=0,\"-\",Daně[Aktuální období]/Výnosy_z_prodeje),\"-\")","v":"-"},{"$f":"IFERROR(IF(Daně[Předchozí období]=Daně[Aktuální období],0,IF(Daně[Aktuální období]>Daně[Předchozí období],ABS((Daně[Aktuální období]/Daně[Předchozí období])-1),IF(AND(Daně[Aktuální období]<Daně[Předchozí období],Daně[Předchozí období]<0),-((Daně[Aktuální období]/Daně[Předchozí období])-1),(Daně[Aktuální období]/Daně[Předchozí období])-1))),\"-\")","v":{"v":0,"d":"0.00%"}},{"$f":"IFERROR(IF(Daně[Rozpočet]=Daně[Aktuální období],0,IF(Daně[Aktuální období]>Daně[Rozpočet],ABS((Daně[Aktuální období]/Daně[Rozpočet])-1),IF(AND(Daně[Aktuální období]<Daně[Rozpočet],Daně[Rozpočet]<0),-((Daně[Aktuální období]/Daně[Rozpočet])-1),(Daně[Aktuální období]/Daně[Rozpočet])-1))),\"-\")","v":{"v":0,"d":"0.00%"}}]
[null,"Daně","Daně z nemovitostí",{"$nulls":3},{"$f":"IFERROR(IF(Výnosy_z_prodeje=0,\"-\",Daně[Aktuální období]/Výnosy_z_prodeje),\"-\")","v":"-"},{"$f":"IFERROR(IF(Daně[Předchozí období]=Daně[Aktuální období],0,IF(Daně[Aktuální období]>Daně[Předchozí období],ABS((Daně[Aktuální období]/Daně[Předchozí období])-1),IF(AND(Daně[Aktuální období]<Daně[Předchozí období],Daně[Předchozí období]<0),-((Daně[Aktuální období]/Daně[Předchozí období])-1),(Daně[Aktuální období]/Daně[Předchozí období])-1))),\"-\")","v":{"v":0,"d":"0.00%"}},{"$f":"IFERROR(IF(Daně[Rozpočet]=Daně[Aktuální období],0,IF(Daně[Aktuální období]>Daně[Rozpočet],ABS((Daně[Aktuální období]/Daně[Rozpočet])-1),IF(AND(Daně[Aktuální období]<Daně[Rozpočet],Daně[Rozpočet]<0),-((Daně[Aktuální období]/Daně[Rozpočet])-1),(Daně[Aktuální období]/Daně[Rozpočet])-1))),\"-\")","v":{"v":0,"d":"0.00%"}}]
[null,"Daně","Jiné daně (upřesněte)",{"$nulls":3},{"$f":"IFERROR(IF(Výnosy_z_prodeje=0,\"-\",Daně[Aktuální období]/Výnosy_z_prodeje),\"-\")","v":"-"},{"$f":"IFERROR(IF(Daně[Předchozí období]=Daně[Aktuální období],0,IF(Daně[Aktuální období]>Daně[Předchozí období],ABS((Daně[Aktuální období]/Daně[Předchozí období])-1),IF(AND(Daně[Aktuální období]<Daně[Předchozí období],Daně[Předchozí období]<0),-((Daně[Aktuální období]/Daně[Předchozí období])-1),(Daně[Aktuální období]/Daně[Předchozí období])-1))),\"-\")","v":{"v":0,"d":"0.00%"}},{"$f":"IFERROR(IF(Daně[Rozpočet]=Daně[Aktuální období],0,IF(Daně[Aktuální období]>Daně[Rozpočet],ABS((Daně[Aktuální období]/Daně[Rozpočet])-1),IF(AND(Daně[Aktuální období]<Daně[Rozpočet],Daně[Rozpočet]<0),-((Daně[Aktuální období]/Daně[Rozpočet])-1),(Daně[Aktuální období]/Daně[Rozpočet])-1))),\"-\")","v":{"v":0,"d":"0.00%"}}]
[null,"Daně","Jiné daně (upřesněte)",{"$nulls":3},{"$f":"IFERROR(IF(Výnosy_z_prodeje=0,\"-\",Daně[Aktuální období]/Výnosy_z_prodeje),\"-\")","v":"-"},{"$f":"IFERROR(IF(Daně[Předchozí období]=Daně[Aktuální období],0,IF(Daně[Aktuální období]>Daně[Předchozí období],ABS((Daně[Aktuální období]/Daně[Předchozí období])-1),IF(AND(Daně[Aktuální období]<Daně[Předchozí období],Daně[Předchozí období]<0),-((Daně[Aktuální období]/Daně[Předchozí období])-1),(Daně[Aktuální období]/Daně[Předchozí období])-1))),\"-\")","v":{"v":0,"d":"0.00%"}},{"$f":"IFERROR(IF(Daně[Rozpočet]=Daně[Aktuální období],0,IF(Daně[Aktuální období]>Daně[Rozpočet],ABS((Daně[Aktuální období]/Daně[Rozpočet])-1),IF(AND(Daně[Aktuální období]<Daně[Rozpočet],Daně[Rozpočet]<0),-((Daně[Aktuální období]/Daně[Rozpočet])-1),(Daně[Aktuální období]/Daně[Rozpočet])-1))),\"-\")","v":{"v":0,"d":"0.00%"}}]
[null,"Celkové daně",null,{"$f":"SUBTOTAL(109,Daně[Předchozí období])","v":0},{"$f":"SUBTOTAL(109,Daně[Rozpočet])","v":0},{"$f":"SUBTOTAL(109,Daně[Aktuální období])","v":0},{"$f":"IFERROR(SUBTOTAL(109,Daně[Aktuální období jako procenta z prodeje]),\"-\")","v":{"v":0,"d":"0.00%"}},{"$f":"SUBTOTAL(109,Daně[Změna oproti předchozímu období v procentech])","v":{"v":0,"d":"0.00%"}},{"$f":"SUBTOTAL(109,Daně[Změna oproti rozpočtu v procentech])","v":{"v":0,"d":"0.00%"}}]

{"sheet":"Kategorie","index":5,"n_rows":8,"n_cols":2,"rows_kept":8}
[null,"Kategorie"]
[null,"Výnosy z prodeje"]
[null,"Náklady na prodej"]
[null,"Příjmy"]
[null,"Prodej a marketing"]
[null,"Výzkum a vývoj"]
[null,"Obecné a administrativní"]
[null,"Daně"]